fUSD/lending_fUSD_20250522
["ID","MTS","AMOUNT","RATE_DAILY","PERIOD"]
[361940321,1747901454174,-453.45,0.00032876,5]
[361940322,1747901454184,-420.0,0.00032876,5]
[361940323,1747901454194,-557.17800514,0.00032876,5]
[361940324,1747901454203,-420.0,0.00032876,5]
[361940325,1747901454213,-1600.64,0.00032876,5]
[361940326,1747901454223,-1640.48,0.00032876,5]
[361940327,1747901454232,-1693.14,0.00032876,5]
[361940328,1747901454242,-3849.71,0.00032876,5]
[361940329,1747901454251,-420.0,0.00032876,5]
[361940330,1747901454261,-939.1,0.00032876,5]
[361940331,1747901454270,-485.6,0.00032876,5]
[361940332,1747901454280,-420.0,0.00032876,5]
[361940333,1747901454289,-565.6,0.00032876,5]
[361940334,1747901454299,-420.0,0.00032876,5]
[361940335,1747901454308,-420.0,0.00032876,5]
[361940336,1747901454318,-420.0,0.00032876,5]
[361940337,1747901454327,-420.0,0.00032876,5]
[361940338,1747901454336,-1388.86,0.00032876,5]
[361940339,1747901454346,-1536.96,0.00032876,5]
[361940340,1747901454356,-2000.0,0.00032876,5]
[361940341,1747901454365,-420.0,0.00032876,5]
[361940342,1747901454375,-531.34,0.00032876,5]
[361940343,1747901454385,-420.0,0.00032876,5]
[361940344,1747901454394,-3362.83,0.00032876,5]
[361940345,1747901454403,-420.0,0.00032876,5]
[361940346,1747901454413,-420.0,0.00032876,5]
[361940347,1747901454422,-420.0,0.00032876,5]
[361940348,1747901454431,-420.0,0.00032876,5]
[361940349,1747901454440,-420.0,0.00032876,5]
[361940350,1747901454451,-420.0,0.00032876,5]
[361940351,1747901454460,-1007.49,0.00032876,5]
[361940352,1747901454470,-910.23,0.00032876,5]
[361940353,1747901454480,-420.0,0.00032876,5]
[361940354,1747901454489,-302.23089589,0.00032876,5]
[361940355,1747901454500,-1890.79,0.00032876,5]
[361940356,1747901454509,-1697.91,0.00032876,5]
[361940357,1747901454519,-995.0,0.00032876,5]
[361940358,1747901454529,-420.0,0.00032876,5]
[361940359,1747901454539,-1446.1,0.00032876,5]
[361940360,1747901454548,-420.0,0.00032876,5]
[361940361,1747901454558,-461.64,0.00032876,5]
[361940362,1747901454567,-540.0,0.00032876,5]
[361940363,1747901454576,-420.0,0.00032876,5]
[361940364,1747901454586,-420.0,0.00032876,5]
[361940365,1747901454595,-1335.63,0.00032876,5]
[361940366,1747901454605,-3631.34,0.00032876,5]
[361940367,1747901454614,-420.0,0.00032876,5]
[361940368,1747901454624,-420.0,0.00032876,5]
[361940369,1747901454634,-1129.61,0.00032876,5]
[361940370,1747901454643,-420.0,0.00032876,5]
[361940371,1747901454653,-972.49,0.00032876,5]
[361940372,1747901454662,-420.0,0.00032876,5]
[361940373,1747901454671,-420.0,0.00032876,5]
[361940374,1747901454681,-420.0,0.00032876,5]
[361940375,1747901454691,-420.0,0.00032876,5]
[361940376,1747901454700,-420.0,0.00032876,5]
[361940377,1747901454710,-1107.73,0.00032876,5]
[361940378,1747901454720,-1084.74,0.00032876,5]
[361940379,1747901454730,-508.83,0.00032876,5]
[361940380,1747901454739,-382.46229094,0.00032876,5]
[361940381,1747901454749,-248.51633306,0.00032876,5]
[361940382,1747901455823,-11526.50366694,0.00032876,5]
[361940383,1747901455834,-420.0,0.00032876,5]
[361940384,1747901455843,-1434.25,0.00032876,5]
[361940385,1747901455854,-420.0,0.00032876,5]
[361940386,1747901455864,-420.0,0.00032876,5]
[361940387,1747901455874,-420.0,0.00032876,5]
[361940388,1747901455883,-420.0,0.00032876,5]
[361940389,1747901455893,-420.0,0.00032876,5]
[361940390,1747901455903,-420.0,0.00032876,5]
[361940391,1747901455913,-420.0,0.00032876,5]
[361940392,1747901455922,-1123.17,0.00032876,5]
[361940393,1747901455932,-10497.12,0.00032876,5]
[361940394,1747901455941,-2059.09,0.00032876,5]
[361940395,1747901455952,-420.0,0.00032876,5]
[361940396,1747901455961,-698.39,0.00032876,5]
[361940397,1747901455971,-420.0,0.00032876,5]
[361940398,1747901455980,-969.09,0.00032876,5]
[361940399,1747901455994,-425.08199806,0.00032876,5]
[361940400,1747901456005,-3674.55,0.00032876,5]
[361940401,1747901456014,-899.11,0.00032876,5]
[361940402,1747901456024,-420.0,0.00032876,5]
[361940403,1747901456034,-420.0,0.00032876,5]
[361940404,1747901456044,-968.69,0.00032876,5]
[361940405,1747901456054,-631.15,0.00032876,5]
[361940406,1747901456065,-420.0,0.00032876,5]
[361940407,1747901456074,-687.05,0.00032876,5]
[361940408,1747901456084,-426.02411933,0.00032876,5]
[361940409,1747901456093,-1000.0,0.00032876,5]
[361940410,1747901456103,-420.0,0.00032876,5]
[361940411,1747901456112,-434.41,0.00032876,5]
[361940412,1747901456122,-420.0,0.00032876,5]
[361940413,1747901456131,-420.0,0.00032876,5]
[361940414,1747901456140,-2284.65,0.00032876,5]
[361940415,1747901456150,-420.0,0.00032876,5]
[361940416,1747901456160,-420.0,0.00032876,5]
[361940417,1747901456170,-420.0,0.00032876,5]
[361940418,1747901456179,-420.0,0.00032876,5]
[361940419,1747901456189,-420.05,0.00032876,5]
[361940420,1747901456199,-1895.1,0.00032876,5]
[361940421,1747901456210,-420.0,0.00032876,5]
[361940422,1747901456220,-913.56,0.00032876,5]
[361940423,1747901456229,-573.64,0.00032876,5]
[361940424,1747901456238,-420.0,0.00032876,5]
[361940425,1747901456248,-420.0,0.00032876,5]
[361940426,1747901456257,-3424.22,0.00032876,5]
[361940427,1747901456267,-420.0,0.00032876,5]
[361940428,1747901456276,-420.0,0.00032876,5]
[361940429,1747901456286,-1324.61,0.00032876,5]
[361940430,1747901456296,-6971.49,0.00032876,5]
[361940431,1747901456306,-502.47087287,0.00032876,5]
[361940432,1747901456315,-420.0,0.00032876,5]
[361940433,1747901456324,-420.0,0.00032876,5]
[361940434,1747901456333,-420.0,0.00032876,5]
[361940435,1747901456343,-31054.61,0.00032876,5]
[361940436,1747901456352,-420.0,0.00032876,5]
[361940437,1747901456362,-595.01,0.00032876,5]
[361940438,1747901456371,-420.0,0.00032876,5]
[361940439,1747901456381,-1524.17,0.00032876,5]
[361940440,1747901456390,-420.0,0.00032876,5]
[361940441,1747901456399,-420.0,0.00032876,5]
[361940442,1747901456409,-420.0,0.00032876,5]
[361940443,1747901456419,-537.82,0.00032876,5]
[361940444,1747901456428,-610.78,0.00032876,5]
[361940445,1747901456438,-2225.48,0.00032876,5]
[361940446,1747901456447,-420.0,0.00032876,5]
[361940447,1747901456457,-2202.03,0.00032876,5]
[361940448,1747901456467,-491.46,0.00032876,5]
[361940449,1747901456476,-500.0,0.00032876,2]
[361940450,1747901456486,-1144.7887365,0.00032876,5]
[361940451,1747901456499,-529.5312635,0.00032876,5]
[361940452,1747901456509,-420.0,0.00032876,5]
[361940453,1747901456519,-420.0,0.00032876,5]
[361940454,1747901456528,-2421.26,0.00032876,5]
[361940455,1747901456538,-483.04,0.00032876,5]
[361940456,1747901456547,-521.3687365,0.00032876,5]
[361940457,1747901456559,-435.2212635,0.00032876,5]
[361940458,1747901456568,-883.55,0.00032876,5]
[361940459,1747901456579,-420.0,0.00032876,5]
[361940460,1747901456588,-420.0,0.00032876,5]
[361940461,1747901456598,-512.76895226,0.00032876,5]
[361940462,1747901456608,-184.62778004,0.00032876,5]
[361940463,1747901456619,-901.60221996,0.00032876,5]
[361940464,1747901456628,-1097.2,0.00032876,5]
[361940465,1747901456638,-420.0,0.00032876,5]
[361940466,1747901456647,-1744.06,0.00032876,5]
[361940467,1747901456656,-942.12,0.00032876,5]
[361940468,1747901456666,-420.0,0.00032876,5]
[361940469,1747901456676,-420.0,0.00032876,5]
[361940470,1747901456685,-420.0,0.00032876,5]
[361940471,1747901456694,-855.71778004,0.00032876,5]
[361940472,1747901456706,-221.66221996,0.00032876,5]
[361940473,1747901456716,-284.18482185,0.00032876,5]
[361940474,1747901456727,-671.10517815,0.00032876,5]
[361940475,1747901456737,-1611.73,0.00032876,5]
[361940476,1747901456747,-420.0,0.00032876,5]
[361940477,1747901456757,-22.62118225,0.00032876,5]
[361940478,1747901456768,-397.37881775,0.00032876,5]
[361940479,1747901456778,-1568.72,0.00032876,5]
[361940480,1747901456787,-420.0,0.00032876,5]
[361940481,1747901456796,-1150.0,0.00032876,5]
[361940482,1747901456806,-420.0,0.00032876,5]
[361940483,1747901456815,-1629.74,0.00032876,5]
[361940484,1747901456825,-572.83,0.00032876,5]
[361940485,1747901456834,-420.0,0.00032876,5]
[361940486,1747901456843,-420.0,0.00032876,5]
[361940487,1747901456853,-351.21429294,0.00032876,5]
[361940488,1747901456880,-896.44570706,0.00032876,5]
[361940489,1747901456889,-424.13067846,0.00032876,5]
[361940490,1747901456898,-420.0,0.00032876,5]
[361940491,1747901456908,-420.0,0.00032876,5]
[361940492,1747901456918,-420.0,0.00032876,5]
[361940493,1747901456927,-575.48,0.00032876,5]
[361940494,1747901456936,-422.72713224,0.00032876,5]
[361940496,1747901799336,2431.0,0.000273,120]
[361940505,1747902440987,-200.0,0.000116,4]
[361940506,1747902441011,-35.80324376,0.000117,4]
[361940515,1747902454184,172.1414827,0.00027,120]
[361940516,1747902459795,499.99,0.00027397,120]
[361940520,1747902524593,150.28986852,0.00027,120]
[361940528,1747902585496,-464.19675624,0.000117,4]
[361940529,1747902585519,-800.0,0.000118,4]
[361940530,1747902585543,-1000.0,0.000119,4]
[361940531,1747902585568,-196.88290931,0.000119,2]
[361940532,1747902585591,-1242.466161,0.000119,2]
[361940533,1747902585613,-250.0,0.00011973,2]
[361940534,1747902585636,-300.0,0.00011989,2]
[361940535,1747902585659,-9427.34078287,0.0001199,2]
[361940536,1747902585681,-300.0,0.00011999,2]
[361940537,1747902585703,-178.71955375,0.00011999,2]
[361940538,1747902585728,-190.29462385,0.00011999,2]
[361940539,1747902585756,-188.17552874,0.00011999,2]
[361940540,1747902585780,-243.8984835,0.00011999,2]
[361940541,1747902585808,-500.0,0.00011999,2]
[361940542,1747902585830,-500.0,0.00011999,2]
[361940543,1747902585857,-500.0,0.00011999,2]
[361940544,1747902585880,-500.0,0.00011999,2]
[361940545,1747902585906,-500.0,0.00011999,2]
[361940546,1747902585929,-500.0,0.00011999,2]
[361940547,1747902585956,-500.0,0.00011999,2]
[361940548,1747902585982,-500.0,0.00011999,2]
[361940549,1747902586004,-500.0,0.00011999,2]
[361940550,1747902586028,-500.0,0.00011999,2]
[361940551,1747902586054,-500.0,0.00011999,2]
[361940552,1747902586080,-500.0,0.00011999,2]
[361940553,1747902586105,-500.0,0.00011999,2]
[361940554,1747902586128,-500.0,0.00011999,2]
[361940555,1747902586154,-500.0,0.00011999,2]
[361940556,1747902586180,-500.0,0.00011999,2]
[361940557,1747902586203,-500.0,0.00011999,2]
[361940558,1747902586228,-500.0,0.00011999,2]
[361940559,1747902586252,-500.0,0.00011999,2]
[361940560,1747902586274,-309.8130855,0.00011999,2]
[361940561,1747902586300,-500.0,0.00011999,2]
[361940562,1747902586322,-500.0,0.00011999,2]
[361940563,1747902586347,-500.0,0.00011999,2]
[361940564,1747902586371,-500.0,0.00011999,2]
[361940565,1747902586397,-500.0,0.00011999,2]
[361940566,1747902586419,-500.0,0.00011999,2]
[361940567,1747902586444,-500.0,0.00011999,2]
[361940568,1747902586469,-500.0,0.00011999,2]
[361940569,1747902586494,-500.0,0.00011999,2]
[361940570,1747902586520,-500.0,0.00011999,2]
[361940571,1747902586546,-500.0,0.00011999,2]
[361940572,1747902586573,-197.97074272,0.00011999,2]
[361940573,1747902586599,-500.0,0.00011999,2]
[361940574,1747902586627,-500.0,0.00011999,2]
[361940575,1747902586653,-500.0,0.00011999,2]
[361940576,1747902586679,-500.0,0.00011999,2]
[361940577,1747902586705,-462.08,0.00011999,2]
[361940578,1747902586729,-2927248.16137252,0.00012,2]
[361940589,1747902632375,-1200.0,0.00011999,2]
[361940591,1747902632388,-274.0,0.00011999,2]
[361940593,1747902632398,-200.0,0.00011999,2]
[361940595,1747902632407,-2720.49424764,0.00012,2]
[361940597,1747902632421,-5764.83045,0.00012,2]
[361940599,1747902632432,-3569.541012,0.00012,2]
[361940600,1747902632443,-7063.51726912,0.00012,2]
[361940601,1747902632456,-11087.4332,0.00012,2]
[361940602,1747902632467,-1555.3552193,0.00012,2]
[361940603,1747902632585,-303.13397463,0.00012,2]
[361940604,1747902632599,-23514.77885965,0.00012,2]
[361940605,1747902632610,-100205.91000001,0.00012,2]
[361940606,1747902632621,-211557.96041131,0.00012,2]
[361940607,1747902632636,-2537.85000536,0.00012,2]
[361940608,1747902632647,-4475.95935791,0.00012,2]
[361940609,1747902632658,-501.84968142,0.00012,2]
[361940610,1747902632669,-522.63906166,0.00012,2]
[361940611,1747902632680,-4518.91044477,0.00012,2]
[361940612,1747902632691,-3766.3,0.00012,2]
[361940613,1747902632702,-1452.0,0.00012,2]
[361940628,1747902637824,-300.0,0.00011999,2]
[361940630,1747902637834,-6168.43035334,0.00012,2]
[361940631,1747902637879,-4894.1,0.00012,2]
[361940632,1747902637891,-2678.25755399,0.00012,2]
[361940633,1747902637901,-2564.34221477,0.00012,2]
[361940634,1747902637911,-656.67,0.00012,2]
[361940635,1747902637935,-7000.0,0.00012,2]
[361940636,1747902637947,-769.89012244,0.00012,2]
[361940637,1747902637958,-12446.81598786,0.00012,2]
[361940638,1747902637969,-11720.67679787,0.00012,2]
[361940639,1747902637981,-16574.8515288,0.00012,2]
[361940640,1747902637992,-5869.39126525,0.00012,2]
[361940641,1747902638002,-12084.82183443,0.00012,2]
[361940642,1747902638013,-4691.97915948,0.00012,2]
[361940643,1747902638032,-41190.89188116,0.00012,2]
[361940764,1747902640039,-2121.45952199,0.00012,2]
[361940765,1747902640050,-5878.54047801,0.00012,2]
[361940801,1747902640477,-0.0116283,0.00012,2]
[361940803,1747902640488,-1178.35535359,0.00012,2]
[361940805,1747902640499,-532.01689976,0.00012,2]
[361940807,1747902640511,-399.8950237,0.00012,2]
[361941078,1747902643253,-78866.93162801,0.00012,2]
[361941080,1747902643264,-56319.88100823,0.00012,2]
[361941082,1747902643273,-168.12630935,0.00012972,2]
[361941084,1747902643282,-3122.31961893,0.0001305,2]
[361941086,1747902643292,-638.8485283,0.00013072,2]
[361941088,1747902643302,-200.0,0.00013199,2]
[361941090,1747902643311,-250.0,0.00013199,2]
[361941092,1747902643321,-300.63391879,0.00013599,2]
[361941094,1747902643330,-4786.44139411,0.00013599,2]
[361941096,1747902643340,-287.6,0.00013699,2]
[361941098,1747902643352,-541.86101675,0.00013699,2]
[361941100,1747902643362,-151.0,0.00014773,2]
[361941102,1747902643372,-250.0,0.00015,2]
[361941104,1747902643382,-151.0,0.00015182,2]
[361941106,1747902643392,-638.8485283,0.00015291,2]
[361941108,1747902643401,-250.0,0.0001546,2]
[361941109,1747902643411,-151.0,0.00015539,2]
[361941111,1747902643420,-227.0,0.00015599,2]
[361941114,1747902643430,-150.0,0.000156,2]
[361941116,1747902643440,-4786.44139406,0.0001576,2]
[361941119,1747902643449,-151.0,0.00016002,2]
[361941121,1747902643459,-300.0,0.00017,2]
[361941123,1747902643468,-418.74903577,0.000173,2]
[361941125,1747902643478,-418.74903566,0.000173,2]
[361941127,1747902643487,-418.74903566,0.000173,2]
[361941129,1747902643496,-418.74903566,0.000173,2]
[361941130,1747902643506,-418.74903566,0.000173,2]
[361941132,1747902643515,-300.63391876,0.00017389,2]
[361941134,1747902643525,-638.8485283,0.0001751,2]
[361941136,1747902643535,-418.74903566,0.000179,2]
[361941138,1747902643544,-4786.44139406,0.00017921,2]
[361941140,1747902643554,-574.75,0.00018338,2]
[361941142,1747902643565,-418.74903566,0.000189,2]
[361941144,1747902643577,-350.0,0.00019,2]
[361941146,1747902643587,-698.92,0.00019585,2]
[361941148,1747902643598,-638.8485283,0.00019729,2]
[361941150,1747902643607,-6950.38696296,0.00019792,2]
[361941151,1747902643618,-418.74903566,0.000199,2]
[361941153,1747902643632,-633.57,0.00019931,2]
[361941155,1747902643642,-15266.47151261,0.0002,5]
[361941157,1747902643652,-1414.87645226,0.0002,5]
[361941159,1747902643661,-8300.0,0.0002,4]
[361941161,1747902643671,-509.72692001,0.0002,7]
[361941163,1747902643680,-1013.0,0.0002,6]
[361941165,1747902643689,-809.09808426,0.0002,7]
[361941167,1747902643699,-4786.44139406,0.00020082,2]
[361941169,1747902643710,-287.6,0.00020187,2]
[361941171,1747902643720,-590.96,0.000202,2]
[361941173,1747902643730,-170.44,0.00020256,2]
[361941175,1747902643740,-300.0,0.00020508,2]
[361941177,1747902643751,-574.75,0.00020602,2]
[361941179,1747902643762,-3036.12758892,0.00020737,2]
[361941180,1747902643771,-418.74903566,0.000209,4]
[361941182,1747902643781,-400.0,0.00021,2]
[361941184,1747902643792,-300.63391876,0.00021179,2]
[361941186,1747902643802,-300.0,0.00021878,2]
[361941188,1747902643812,-418.74903566,0.000219,6]
[361941190,1747902643822,-150.04,0.00021918,2]
[361941192,1747902643832,-638.8485283,0.00021948,2]
[361941194,1747902643842,-510.63,0.00021967,2]
[361941196,1747902643856,-1611.22160407,0.00022,12]
[361941198,1747902643865,-767.43037965,0.00022,7]
[361941200,1747902643875,-4786.44139406,0.00022243,2]
[361941202,1747902643885,-207.4,0.00022295,2]
[361941204,1747902643894,-1075.91674266,0.000225,15]
[361941206,1747902643904,-157.97,0.00022574,2]
[361941208,1747902643914,-150.04,0.00022603,2]
[361941210,1747902643923,-574.75,0.00022866,2]
[361941212,1747902643933,-418.74903566,0.000229,8]
[361941214,1747902643943,-450.0,0.00023,2]
[361941216,1747902643952,-880.0,0.00023223,2]
[361941218,1747902643963,-154.0,0.00023223,2]
[361941219,1747902643972,-414.104,0.00023223,2]
[361941221,1747902643982,-2874.68,0.00023223,2]
[361941223,1747902643992,-1151.0,0.00023223,2]
[361941225,1747902644003,-150.04,0.00023288,2]
[361941227,1747902644014,-215.0738,0.00023664,2]
[361941229,1747902644024,-418.74903566,0.000239,10]
[361941231,1747902644035,-150.04,0.00023973,2]
[361941233,1747902644046,-500.0,0.00024,2]
[361941235,1747902644056,-151.0,0.0002416,2]
[361941237,1747902644067,-668.65185757,0.0002416,2]
[361941238,1747902644077,-638.8485283,0.00024167,2]
[361941240,1747902644088,-9415.11,0.00024174,2]
[361941242,1747902644103,-4786.44139406,0.00024404,2]
[361941244,1747902644114,-168.12630933,0.00024518,2]
[361941246,1747902644124,-150.04,0.00024658,2]
[361941248,1747902644135,-784.06664758,0.00024708,2]
[361941249,1747902644146,-500.74291645,0.00024773,2]
[361941251,1747902644156,-500.0,0.00024773,2]
[361941253,1747902644167,-501.1328936,0.00024773,2]
[361941255,1747902644178,-137479.79948318,0.000248,2]
[361941258,1747902644192,-1395.02696505,0.000248,2]
[361941260,1747902644203,-21360.0,0.000248,2]
[361941262,1747902644223,-21330.0288039,0.000248,2]
[361941266,1747902644251,-11962.02959234,0.000248,2]
[361941268,1747902644262,-28392.26173641,0.000248,2]
[361941270,1747902644274,-4875.4,0.000248,2]
[361941451,1747902645940,-5232.61582512,0.000248,2]
[361941454,1747902645950,-1000.0,0.00024884,2]
[361941457,1747902645960,-590.96,0.000249,7]
[361941460,1747902645971,-418.74903566,0.000249,12]
[361941463,1747902645981,-97.45832784,0.00024969,2]
[361941467,1747902645998,-203.17559092,0.00024969,2]
[361941470,1747902646007,-500.0,0.00025,2]
[361941473,1747902646017,-223.0315306,0.00025033,2]
[361941476,1747902646028,-129.53591213,0.00025058,2]
[361941478,1747902646040,-20.46408787,0.00025058,2]
[361941480,1747902646050,-1687.77963549,0.000251,2]
[361941482,1747902646062,-1820.28127284,0.000251,2]
[361941484,1747902646073,-488.46000064,0.000251,2]
[361941491,1747902646139,-1796.35738584,0.000251,2]
[361941493,1747902646152,-2460.839191,0.000251,2]
[361941495,1747902646163,-383.79180157,0.000251,2]
[361941515,1747902646285,-6967.839,0.000251,2]
[361941608,1747902647221,-87637.53646058,0.000251,2]
[361941610,1747902647233,-260.43533064,0.000251,2]
[361941612,1747902647243,-1231.437585,0.000251,2]
[361941617,1747902647277,-2427.99999,0.000251,2]
[361941619,1747902647288,-2218.47006649,0.000251,2]
[361941621,1747902647299,-7073.77227991,0.000251,2]
[361941623,1747902647309,-574.75,0.0002513,2]
[361941625,1747902647319,-14914.05,0.000252,2]
[361941627,1747902647329,-1000.0,0.00025321,2]
[361941629,1747902647338,-150.04,0.00025342,2]
[361941631,1747902647350,-153.00873093,0.00025529,2]
[361941634,1747902647360,-5561.0,0.000258,3]
[361941635,1747902647369,-1500.0,0.00025868,2]
[361941638,1747902647380,-418.74903566,0.000259,14]
[361941639,1747902647394,-2559.78,0.00025984,2]
[361941641,1747902647403,-150.04,0.00026027,2]
[361941644,1747902647415,-880.0,0.00026223,2]
[361941645,1747902647424,-46.39347654,0.00026223,2]
[361941773,1747903500335,365.5,0.00027308,120]
[361941775,1747903558021,-250.0,0.00013199,2]
[361941776,1747903558043,-200.0,0.00013218,2]
[361941777,1747903558065,-200.0,0.00013236,2]
[361941778,1747903558088,-200.0,0.00013404,2]
[361941779,1747903558109,-250.0,0.000135,2]
[361941780,1747903558132,-292.38,0.00013698,2]
[361941781,1747903558155,-282.18,0.00013699,2]
[361941782,1747903558176,-154.96882221,0.00014,2]
[361941783,1747903558198,-200.0,0.00014519,2]
[361941784,1747903558220,-200.0,0.00014519,2]
[361941785,1747903558241,-2463.0,0.00015,7]
[361941786,1747903558262,-292.38,0.00015068,2]
[361941787,1747903590532,-250.0,0.00015868,2]
[361941789,1747903595596,-200.0,0.00016153,2]
[361941790,1747903595630,-292.38,0.00016438,2]
[361941791,1747903595655,-150.0,0.000168,2]
[361941792,1747903598441,150.0,0.000171,2]
[361941794,1747903610623,-237.30611538,0.000172,2]
[361941795,1747903610646,-200.0,0.00017455,2]
[361941796,1747903610676,-237.30611534,0.00017762,2]
[361941797,1747903610702,-292.38,0.00017808,2]
[361941811,1747903665414,150.0,0.000169,2]
[361941824,1747903832045,-292.38,0.00019178,2]
[361941825,1747903832055,-1200.0,0.00019999,2]
[361941826,1747903832066,-4000.0,0.0002,2]
[361941827,1747903832075,-4000.0,0.0002,2]
[361941828,1747903832085,-282.18,0.00020187,2]
[361941829,1747903832095,-708.19,0.00020284,2]
[361941830,1747903832104,-292.38,0.00020547,2]
[361941831,1747903832115,-151.0,0.00020617,2]
[361941832,1747903832125,-151.0,0.00020635,2]
[361941833,1747903832134,-151.0,0.00020659,2]
[361941834,1747903832145,-151.0,0.00020684,2]
[361941835,1747903832155,-221.48570767,0.000209,4]
[361941836,1747903832165,-221.48570765,0.00021624,5]
[361941837,1747903832175,-232.06,0.000217,7]
[361941838,1747903832186,-365.5,0.00021847,2]
[361941839,1747903832195,-1500.0,0.00021887,2]
[361941840,1747903832205,-292.38,0.00021917,2]
[361941841,1747903832216,-150.04,0.00021918,2]
[361941842,1747903832226,-150.0,0.00022099,2]
[361941843,1747903832235,-132.27627902,0.00022224,2]
[361941844,1747903832252,-1885.935,0.00022224,2]
[361941845,1747903832272,-732.78872098,0.00022224,2]
[361941846,1747903832282,-207.4,0.00022295,2]
[361941847,1747903832292,-221.48570765,0.00022348,7]
[361941848,1747903832302,-1314.20904737,0.0002238,2]
[361941849,1747903832318,-2685.79095263,0.0002238,2]
[361941850,1747903832328,-150.0,0.00022384,2]
[361941851,1747903832337,-3697.44,0.00022508,2]
[361941852,1747903832347,-708.19,0.00022548,2]
[361941853,1747903832356,-283.76,0.00022688,2]
[361941854,1747903832366,-250.0,0.00022846,2]
[361941855,1747903832375,-1044.48,0.00022904,2]
[361941856,1747903832385,-5561.0,0.00023,5]
[361941857,1747903832394,-221.48570765,0.00023072,8]
[361941858,1747903832404,-273.15,0.00023087,2]
[361941859,1747903832414,-150.04,0.00023135,2]
[361941860,1747903832423,-23900.0,0.00023168,2]
[361941862,1747903832433,-500.0,0.00023192,3]
[361941864,1747903832443,-292.38,0.00023287,2]
[361941866,1747903832452,-4000.0,0.00023382,2]
[361941868,1747903832462,-160.56,0.00023422,2]
[361941870,1747903832471,-169.81,0.00023425,2]
[361941872,1747903832481,-215.0738,0.00023664,2]
[361941874,1747903832490,-1500.0,0.00023717,2]
[361941876,1747903832500,-221.48570765,0.00023797,9]
[361941878,1747903832509,-447.05,0.00023836,2]
[361941880,1747903832518,-168.3,0.00023844,2]
[361941882,1747903832527,-500.0,0.00024,2]
[361941884,1747903832537,-179.56,0.00024218,2]
[361941886,1747903832546,-150.04,0.00024353,2]
[361941888,1747903832555,-150.0,0.00024376,7]
[361941890,1747903832564,-221.48570765,0.00024521,11]
[361941892,1747903832574,-365.5,0.00024577,2]
[361941894,1747903832583,-804.0,0.00024646,2]
[361941896,1747903832593,-558.459,0.00024646,2]
[361941898,1747903832602,-927.45,0.00024646,2]
[361941900,1747903832612,-1482.216,0.00024646,2]
[361941902,1747903832621,-1301.167,0.00024646,2]
[361941903,1747903832631,-399.949,0.00024646,2]
[361941904,1747903832640,-292.38,0.00024657,2]
[361941905,1747903832650,-708.19,0.00024812,2]
[361941906,1747903832659,-4000.0,0.0002488,2]
[361941907,1747903832669,-223.0315306,0.00025033,2]
[361941908,1747903832678,-168.3,0.00025156,2]
[361941909,1747903832687,-744.0,0.00025205,2]
[361941910,1747903832697,-221.48570765,0.00025245,12]
[361941911,1747903832707,-250.0,0.00025339,2]
[361941912,1747903832716,-2571.39,0.00025472,2]
[361941913,1747903832726,-150.04,0.00025571,2]
[361941914,1747903832736,-1000.0,0.00025746,2]
[361941915,1747903832745,-197.0,0.000258,14]
[361941916,1747903832755,-221.48570765,0.00025969,14]